fUSD/lending_fUSD_20240802
["ID","MTS","AMOUNT","RATE_DAILY","PERIOD"]
[333850146,1722557076896,180.16,0.0002538,120]
[333850149,1722557314453,5000.0,9e-05,2]
[333850169,1722557432298,-859.49,9.8e-05,2]
[333850170,1722557432308,-526.08215279,0.00010909,2]
[333850171,1722557432318,-1256.27829447,0.00010909,2]
[333850172,1722557432328,-236.40881395,0.00010909,2]
[333850173,1722557432338,-121.74073879,0.00011999,2]
[333850174,1722557432355,-178.25926121,0.00011999,2]
[333850175,1722557432365,-3368.69370626,0.00012,2]
[333850176,1722557432378,-1631.30629374,0.00012,2]
[333850177,1722557432387,-550.0,0.00012,2]
[333850178,1722557432397,-3300.0,0.00013,2]
[333850179,1722557432407,-420.0,0.00013172,2]
[333850180,1722557432417,-4869.138,0.00013437,2]
[333850181,1722557432426,-150.0,0.00013437,2]
[333850182,1722557432435,-1668.0,0.00013437,2]
[333850183,1722557432444,-1000.0,0.00013973,2]
[333850184,1722557432455,-600.0,0.00014,2]
[333850185,1722557432465,-2804.45,0.00014414,2]
[333850186,1722557432476,-150.99,0.00014414,2]
[333850187,1722557432486,-274.77,0.00014414,2]
[333850188,1722557432496,-587.0,0.0001446,2]
[333850189,1722557432512,-20021.96435556,0.00015,7]
[333850190,1722557432527,-1510.0,0.00015,2]
[333850191,1722557432537,-207.71,0.00015429,2]
[333850192,1722557432548,-345.63,0.0001579,2]
[333850193,1722557432557,-345.63,0.0001579,2]
[333850194,1722557432568,-345.63,0.0001579,2]
[333850195,1722557432579,-22503.07,0.000158,2]
[333850196,1722557432589,-997.6,0.000158,2]
[333850197,1722557432600,-823.0,0.00015874,2]
[333850198,1722557432611,-650.0,0.00016,2]
[333850199,1722557432621,-1695.07496562,0.00016232,2]
[333850200,1722557432631,-200.0,0.0001633,2]
[333850202,1722557432641,-345.63,0.00016588,2]
[333850204,1722557432652,-1512.643933,0.0001661,2]
[333850206,1722557432662,-345.63,0.0001669,2]
[333850207,1722557432671,-3000.0,0.000167,2]
[333850208,1722557432682,-345.63,0.00016722,2]
[333850210,1722557432692,-250.0,0.00016727,2]
[333850212,1722557432702,-7014.23,0.00016732,2]
[333850214,1722557432712,-1762.35293248,0.00016798,2]
[333850216,1722557432722,-1390.82835558,0.00016882,2]
[333850218,1722557432732,-158.29060583,0.00016882,2]
[333850220,1722557432742,-718.12912468,0.00016882,2]
[333850222,1722557432752,-455.26111064,0.00016882,2]
[333850224,1722557432776,-345.63,0.00016886,2]
[333850225,1722557432786,-155.0,0.00016897,2]
[333850226,1722557432796,-180.16,0.0001692,2]
[333850227,1722557432806,-155.0,0.00016948,2]
[333850228,1722557432816,-493.15120457,0.00016949,2]
[333850229,1722557432826,-500.0,0.00017089,3]
[333850230,1722557432836,-345.63,0.00017144,2]
[333850231,1722557432845,-345.63,0.00017144,2]
[333850232,1722557432855,-8537.91,0.00017154,2]
[333850233,1722557432864,-429.92,0.00017164,2]
[333850234,1722557432874,-2727.16525437,0.00017259,2]
[333850235,1722557432883,-5000.0,0.00017259,2]
[333850236,1722557432892,-450.12,0.0001726,2]
[333850237,1722557432901,-345.63,0.00017295,2]
[333850238,1722557432910,-1945.67,0.00017305,2]
[333850239,1722557432919,-250.0,0.00017334,2]
[333850240,1722557432928,-345.63,0.0001737,2]
[333850241,1722557432937,-4026.45621227,0.0001738,2]
[333850242,1722557432947,-345.63,0.00017389,2]
[333850243,1722557432956,-1152.0,0.00017426,2]
[333850244,1722557432965,-2751.0,0.00017468,2]
[333850245,1722557432974,-161.17,0.00017544,2]
[333850246,1722557432983,-345.63,0.00017559,2]
[333850247,1722557432992,-345.63,0.00017559,2]
[333850248,1722557433002,-150.0,0.00017567,2]
[333850249,1722557433023,-8196.19,0.00017569,2]
[333850250,1722557433037,-3055.42,0.00017573,2]
[333850251,1722557433047,-207.71,0.00017693,2]
[333850252,1722557433056,-345.63,0.00017797,2]
[333850253,1722557433066,-2383.95531201,0.00017807,2]
[333850254,1722557433077,-279.85758067,0.00017987,2]
[333850255,1722557433087,-700.0,0.00018,2]
[333850256,1722557433096,-632.96258388,0.00018006,2]
[333850257,1722557433106,-517.61678263,0.00018008,3]
[333850258,1722557433118,-345.63,0.00018044,2]
[333850259,1722557433128,-345.63,0.00018054,2]
[333850260,1722557433138,-2256.98,0.00018054,2]
[333850261,1722557433147,-2256.98,0.00018059,2]
[333850262,1722557433157,-713.89,0.00018063,3]
[333850263,1722557433167,-345.63,0.00018063,2]
[333850264,1722557433177,-2256.98,0.00018064,2]
[333850265,1722557433188,-2256.98,0.00018068,2]
[333850266,1722557433198,-237.95,0.00018073,3]
[333850267,1722557433208,-2256.98,0.00018073,2]
[333850268,1722557433218,-345.63,0.00018077,2]
[333850269,1722557433228,-2256.98,0.00018078,2]
[333850270,1722557433238,-2256.98,0.00018083,2]
[333850271,1722557433248,-345.63,0.00018087,2]
[333850272,1722557433269,-2256.98,0.00018087,2]
[333850273,1722557433279,-2256.98,0.00018092,2]
[333850274,1722557433288,-345.63,0.00018096,2]
[333850275,1722557433299,-2256.98,0.00018097,2]
[333850276,1722557433309,-2256.98,0.00018102,2]
[333850277,1722557433319,-345.63,0.00018106,2]
[333850278,1722557433329,-2256.98,0.00018106,2]
[333850279,1722557433338,-1000.0,0.00018108,2]
[333850280,1722557433347,-2256.98,0.00018111,2]
[333850281,1722557433357,-345.63,0.00018115,2]
[333850282,1722557433366,-2256.98,0.00018116,2]
[333850283,1722557433376,-2256.98,0.00018121,2]
[333850284,1722557433385,-2256.98,0.00018125,2]
[333850285,1722557433395,-345.63,0.0001813,2]
[333850286,1722557433404,-2256.98,0.0001813,2]
[333850287,1722557433414,-2256.98,0.00018135,2]
[333850288,1722557433424,-2256.98,0.0001814,2]
[333850289,1722557433434,-2256.98,0.00018144,2]
[333850290,1722557433444,-345.63,0.00018489,2]
[333850291,1722557433454,-3960.57055669,0.00018499,2]
[333850292,1722557433464,-300.34188489,0.00018599,2]
[333850293,1722557433474,-360.32,0.0001861,2]
[333850294,1722557433484,-279.85758063,0.00018755,2]
[333850295,1722557433494,-632.96258379,0.00018772,2]
[333850296,1722557433504,-173.07,0.0001884,2]
[333850297,1722557433527,-300.0,0.00018848,2]
[333850298,1722557433537,-155.0,0.00018898,2]
[333850299,1722557433547,-167.0,0.00018981,2]
[333850300,1722557433557,-1613.0,0.0001913,2]
[333850301,1722557433567,-345.63,0.00019167,2]
[333850302,1722557433576,-584.45053536,0.00019177,2]
[333850303,1722557433586,-535.41646623,0.0001924,2]
[333850304,1722557433595,-535.41646623,0.0001924,2]
[333850305,1722557433605,-327.928426,0.00019387,2]
[333850306,1722557433616,-327.928426,0.00019387,2]
[333850307,1722557433626,-308.97616233,0.00019387,2]
[333850308,1722557433636,-155.0,0.00019387,2]
[333850309,1722557433646,-475.9,0.00019443,3]
[333850310,1722557433656,-264.23719677,0.00019451,2]
[333850311,1722557433666,-345.63,0.0001949,2]
[333850312,1722557433676,-942.6441,0.00019499,2]
[333850313,1722557433686,-3000.0,0.000195,2]
[333850314,1722557433697,-279.85758063,0.00019523,2]
[333850315,1722557433707,-632.96258379,0.00019538,2]
[333850316,1722557433717,-167.0,0.00019608,2]
[333850317,1722557433727,-398.29,0.00019669,2]
[333850318,1722557433737,-398.29,0.00019675,2]
[333850319,1722557433747,-398.29,0.0001968,2]
[333850320,1722557433762,-398.29,0.00019685,2]
[333850321,1722557433778,-345.63,0.0001969,2]
[333850322,1722557433788,-398.29,0.0001969,2]
[333850323,1722557433800,-398.29,0.00019695,2]
[333850324,1722557433810,-500.0,0.000197,7]
[333850325,1722557433820,-398.29,0.00019701,2]
[333850326,1722557433830,-398.29,0.00019706,2]
[333850327,1722557433840,-398.29,0.00019711,2]
[333850328,1722557433851,-398.29,0.00019716,2]
[333850329,1722557433861,-398.29,0.00019721,2]
[333850330,1722557433871,-398.29,0.00019726,2]
[333850331,1722557433880,-398.29,0.00019732,2]
[333850332,1722557433890,-398.29,0.00019737,2]
[333850333,1722557433900,-398.29,0.00019742,2]
[333850334,1722557433909,-345.63,0.00019742,2]
[333850335,1722557433919,-398.29,0.00019747,2]
[333850336,1722557433929,-398.29,0.00019752,2]
[333850337,1722557433938,-398.29,0.00019758,2]
[333850338,1722557433948,-398.29,0.00019763,2]
[333850339,1722557433957,-398.29,0.00019768,2]
[333850340,1722557433967,-1000.0,0.000198,7]
[333850341,1722557433976,-1500.0,0.000199,7]
[333850342,1722557433986,-207.71,0.00019957,2]
[333850343,1722557433996,-327.775,0.00019972,2]
[333850344,1722557434011,-345.63,0.0001999,2]
[333850345,1722557434028,-6287.75185232,0.0002,2]
[333850346,1722557434039,-155.0,0.0002,2]
[333850347,1722557434048,-1282.3416809,0.0002,2]
[333850348,1722557434059,-210.25921246,0.0002,2]
[333850349,1722557434068,-366.94306876,0.0002,2]
[333850350,1722557434078,-750.0,0.0002,2]
[333850351,1722557434088,-600.0,0.00020034,2]
[333850352,1722557434098,-1007.36159092,0.0002007,2]
[333850353,1722557434109,-1092.81724119,0.0002007,2]
[333850354,1722557434119,-151.48,0.00020082,2]
[333850355,1722557434129,-500.0,0.00020108,2]
[333850356,1722557434139,-957.00824709,0.00020119,2]
[333850357,1722557434148,-438.20136165,0.0002012,2]
[333850358,1722557434158,-604.0328,0.0002016,2]
[333850359,1722557434168,-500.0,0.0002019,2]
[333850360,1722557434178,-157.32856193,0.00020191,2]
[333850361,1722557434187,-600.0,0.00020204,2]
[333850362,1722557434198,-500.0,0.00020209,2]
[333850363,1722557434208,-300.0,0.00020218,2]
[333850364,1722557434218,-760.6,0.00020219,2]
[333850365,1722557434227,-2023.13812146,0.00020222,2]
[333850366,1722557434237,-167.0,0.00020234,2]
[333850367,1722557434247,-23272.2304,0.0002026,2]
[333850368,1722557434267,-30094.889,0.0002026,2]
[333850369,1722557434278,-202.3894396,0.0002027,2]
[333850370,1722557434288,-39982.0,0.00020275,2]
[333850371,1722557434299,-600.0,0.00020277,2]
[333850372,1722557434308,-3000.0,0.0002028,2]
[333850373,1722557434318,-2720.0,0.00020289,8]
[333850374,1722557434329,-632.96258379,0.00020304,2]
[333850375,1722557434340,-26491.9764335,0.00020306,4]
[333850376,1722557434351,-500.0,0.00020316,2]
[333850377,1722557434362,-600.0,0.00020338,2]
[333850378,1722557434372,-52983.952867,0.0002035,4]
[333850379,1722557434383,-500.0,0.00020354,2]
[333850380,1722557434393,-207.92410251,0.0002036,2]
[333850381,1722557434403,-185443.835035,0.0002036,4]
[333850382,1722557434414,-20270.64186684,0.0002036,4]
[333850383,1722557434431,-113438.44585016,0.0002036,4]
[333850384,1722557434441,-217.0,0.0002036,2]
[333850385,1722557434885,-233306.3657,0.0002037,2]
[333850386,1722557434895,-21210.3587,0.0002037,2]
[333850387,1722557434905,-1000.0,0.0002037,2]
[333850388,1722557434916,-1000.0,0.00020372,2]
[333850389,1722557434927,-162.30891768,0.0002038,2]
[333850390,1722557434937,-169.84462217,0.0002038,2]
[333850391,1722557434947,-187.07182013,0.0002038,2]
[333850392,1722557434957,-174.0,0.000204,2]
[333850393,1722557434967,-202.3894396,0.00020428,2]
[333850394,1722557434977,-52983.952867,0.0002044,4]
[333850395,1722557434987,-53483.6350869,0.0002044,4]
[333850396,1722557434997,-1000.0,0.00020447,2]
[333850397,1722557435011,-500.0,0.00020452,2]
[333850398,1722557435021,-287.581095,0.0002046,2]
[333850399,1722557435030,-287.581095,0.0002046,2]
[333850400,1722557435043,-151.0,0.0002046,2]
[333850401,1722557435053,-151.0,0.0002046,2]
[333850402,1722557435063,-600.0,0.00020468,2]
[333850403,1722557435074,-287.581095,0.0002047,2]
[333850404,1722557435084,-287.581095,0.0002047,2]
[333850405,1722557435094,-151.0,0.0002047,2]
[333850406,1722557435104,-53769.80328066,0.0002047,4]
[333850407,1722557435117,-295.44814184,0.0002047,4]
[333850408,1722557435135,-155.0,0.00016897,2]
[333850409,1722557435145,-7805.33,0.0002047,4]
[333850410,1722557435157,-3537.64514157,0.0002047,4]
[333850411,1722557435169,-1192.8949193,0.0002047,4]
[333850412,1722557435182,-7041.0290865,0.0002047,4]
[333850413,1722557435194,-349.70936002,0.0002047,4]
[333850539,1722557439681,-155.0,0.00016948,2]
[333850541,1722557439691,-327.928426,0.00019319,2]
[333850543,1722557439700,-623.71061385,0.00019599,2]
[333850545,1722557439710,-383.79746902,0.00020109,2]
[333850548,1722557439723,-54.40389263,0.00020109,2]
[333850550,1722557439732,-279.85758063,0.00020291,2]
[333850552,1722557439742,-322.53867508,0.0002047,4]
[333850554,1722557439753,-326.45,0.0002047,4]
[333850556,1722557439765,-300.001004,0.0002047,4]
[333850558,1722557439777,-1664.7,0.0002047,4]
[333850561,1722557439792,-16450.4339999,0.0002047,4]
[333850563,1722557439803,-4359.03,0.0002047,4]
[333850614,1722557440266,-217.0,0.0002027,2]
[333850616,1722557440275,-445.62316066,0.0002047,4]
[333850618,1722557440287,-1292.19870418,0.0002047,4]
[333850619,1722557440299,-295.26037832,0.0002047,4]
[333850628,1722557440421,-2926.4020911,0.0002047,4]
[333850630,1722557440433,-1746.2,0.0002047,4]
[333850646,1722557440580,-415.1,0.0002038,2]
[333850703,1722557443240,-707.3898016,0.0002038,2]
[333850704,1722557443252,-1388.82081271,0.0002038,2]
[333850705,1722557443292,-915.6680971,0.0002038,2]
[333850706,1722557443304,-1481.35695882,0.0002038,2]
[333850707,1722557443315,-430.65367495,0.0002038,2]
[333850708,1722557443398,-151.06328511,0.00020358,2]
[333850709,1722557443408,-1646.63671489,0.0002038,2]
[333850728,1722557446500,-1143.15447367,0.00019972,2]
[333850729,1722557446510,-900.97433002,0.0002038,2]
[333850730,1722557446521,-992.26795269,0.0002047,4]
[333850731,1722557446554,-685.07706886,0.0002047,4]
[333850732,1722557446566,-185613.69780432,0.0002047,4]
[333850733,1722557446576,-427869.080695,0.0002047,4]
[333850734,1722557446586,-151.0,0.0002047,2]
[333850735,1722557446595,-151.0,0.0002047,2]
[333850736,1722557446604,-264.737557,0.0002047,2]
[333850737,1722557446613,-190.518708,0.0002047,2]
[333850738,1722557446622,-190.518708,0.0002047,2]
[333850739,1722557446632,-190.518708,0.0002047,2]
[333850740,1722557446642,-190.518708,0.0002047,2]
[333850741,1722557446651,-10373.0228173,0.00020476,2]
[333850742,1722557446660,-500.0,0.00020476,2]
[333850743,1722557446670,-12606.376849,0.00020476,2]
[333850744,1722557446680,-539.7233356,0.00020476,2]
[333850745,1722557446690,-151.06328511,0.00020477,2]
[333850746,1722557446701,-1000.0,0.00020479,2]
[333850747,1722557446711,-166.49167887,0.00020479,2]
[333850748,1722557446722,-503258.04155935,0.0002048,2]
[333850751,1722557587042,183.8,0.00026288,120]
[333850753,1722558335166,1000.0,0.00027,120]
[333850754,1722558335357,1000.0,0.00027,120]
[333850755,1722558335665,1000.0,0.00027,120]
[333850756,1722558335757,1000.0,0.00027,120]
[333850757,1722558336052,1000.0,0.00027,120]
[333850758,1722558336440,1000.0,0.00027,120]
[333850759,1722558336893,1000.0,0.00027,120]
[333850760,1722558338748,1000.0,0.00027,120]
[333850761,1722558338871,1000.0,0.00027,120]
[333850762,1722558338910,1000.0,0.00027,120]
[333850763,1722558339066,1000.0,0.00027,120]
[333850764,1722558339364,1000.0,0.00027,120]
[333850765,1722558339544,1000.0,0.00027,120]
[333850766,1722558339977,1000.0,0.00027,120]
[333850767,1722558340455,1000.0,0.00027,120]
[333850768,1722558340952,1000.0,0.00027,120]
[333850769,1722558345045,1000.0,0.00027,120]
[333850770,1722558345259,1000.0,0.00027,120]
[333850771,1722558345734,1000.0,0.00027,120]
[333850772,1722558346198,1000.0,0.00027,120]
[333850773,1722558346613,1000.0,0.00027,120]
[333850774,1722558347298,1000.0,0.00027,120]
[333850775,1722558347499,1000.0,0.00027,120]
[333850776,1722558347979,1000.0,0.00027,120]
[333850777,1722558348454,1000.0,0.00027,120]
[333850778,1722558348915,1000.0,0.00027,120]
[333850779,1722558349386,1000.0,0.00027,120]
[333850780,1722558349846,1000.0,0.00027,120]
[333850781,1722558350343,1000.0,0.00027,120]
[333850782,1722558350868,1000.0,0.00027,120]
[333850783,1722558351347,1000.0,0.00027,120]
[333850784,1722558352404,1000.0,0.00027,120]
[333850785,1722558352514,1000.0,0.00027,120]
[333850786,1722558352905,1000.0,0.00027,120]
[333850787,1722558353402,1000.0,0.00027,120]
[333850788,1722558353875,1000.0,0.00027,120]
[333850789,1722558354365,1000.0,0.00027,120]
[333850790,1722558355945,1000.0,0.00027,120]
[333850791,1722558356152,1000.0,0.00027,120]
[333850792,1722558356243,1000.0,0.00027,120]
[333850793,1722558356526,1000.0,0.00027,120]
[333850794,1722558356773,1000.0,0.00027,120]
[333850795,1722558357207,1000.0,0.00027,120]
[333850796,1722558357739,1000.0,0.00027,120]
[333850797,1722558358251,1000.0,0.00027,120]
[333850798,1722558358770,1000.0,0.00027,120]
[333850799,1722558359241,1000.0,0.00027,120]
[333850800,1722558359712,1000.0,0.00027,120]
[333850801,1722558360209,1000.0,0.00027,120]
[333850802,1722558360676,1000.0,0.00027,120]
[333850803,1722558361154,1000.0,0.00027,120]
[333850804,1722558361618,1000.0,0.00027,120]
[333850805,1722558362097,1000.0,0.00027,120]
[333850806,1722558362574,1000.0,0.00027,120]
[333850807,1722558363203,1000.0,0.00027,120]
[333850808,1722558363738,1000.0,0.00027,120]
[333850809,1722558363968,1000.0,0.00027,120]
[333850810,1722558364493,1000.0,0.00027,120]
[333850811,1722558364974,1000.0,0.00027,120]
[333850812,1722558365449,1000.0,0.00027,120]
[333850813,1722558367711,1000.0,0.00027,120]
[333850814,1722558367976,1000.0,0.00027,120]
[333850815,1722558368099,1000.0,0.00027,120]
[333850816,1722558374106,349.19877173,0.00027,120]
[333850841,1722558631502,-1420.438834,0.00010447,2]
[333850843,1722558631511,-300.0,0.000105,3]
[333850845,1722558631521,-700.0,0.000106,3]
[333850847,1722558631532,-317.7243,0.000106,2]
[333850850,1722558631542,-1000.0,0.000107,3]
[333850851,1722558631552,-1400.0,0.000108,3]
[333850852,1722558631562,-300.0,0.00010879,2]
[333850853,1722558631572,-300.0,0.00010879,2]
[333850854,1722558631581,-82226.13761947,0.0001088,2]
[333850855,1722558631590,-1800.0,0.000109,3]
[333850856,1722558631600,-3248.85559707,0.000109,2]
[333850857,1722558631610,-5000.0,0.00010909,2]
[333850858,1722558631619,-155.0,0.00010909,2]
[333850859,1722558631629,-2383.95531201,0.00010909,2]
[333850860,1722558631638,-2612.15574141,0.00010909,2]
[333850861,1722558631648,-391.93646141,0.00010909,2]
[333850862,1722558631657,-308.97616233,0.00010909,2]
[333850863,1722558631667,-327.928426,0.00010909,2]
[333850864,1722558631676,-2348.02,0.00010909,2]
[333850865,1722558631685,-221.64,0.00010959,2]
[333850866,1722558631695,-184.7,0.00010959,2]
[333850867,1722558631704,-235518.64997897,0.00011,3]
[333850868,1722558631713,-12838.29915363,0.00011,2]
[333850869,1722558631740,-1075.9549519,0.00011,2]
[333850870,1722558631751,-3494.76952503,0.00011,2]
[333850871,1722558631763,-1577.90951174,0.00011,2]
[333850872,1722558631774,-1517.42729465,0.00011,2]
[333850873,1722558631796,-632991.49448633,0.00011,2]
[333850874,1722558631808,-1004.69421276,0.00011,2]
[333850875,1722558631842,-351.96,0.00011,2]
[333850876,1722558631857,-552.98113672,0.00011,2]
[333850877,1722558631874,-421.55839924,0.00011,2]
[333850879,1722558631886,-1378.29577402,0.00011,2]
[333850882,1722558631899,-277.50880542,0.00011,2]
[333850883,1722558631927,-19207.54554323,0.00011,2]
[333850884,1722558631939,-939.82724979,0.00011,2]
[333850885,1722558631968,-1982.825,0.00011,2]
[333850886,1722558631979,-425.13616589,0.00011,2]
[333850887,1722558631990,-1230.78807392,0.00011,2]
[333850890,1722558637437,-153.92,0.00010959,2]
[333850891,1722558637448,-269.18202108,0.00010997,2]
[333850892,1722558637928,-664.3,0.00010997,2]
[333850893,1722558637941,-370.27272899,0.00010997,2]
[333850894,1722558637952,-175.08255645,0.00010997,2]
[333850896,1722558637962,-176.83744355,0.00011,2]
[333850931,1722558638355,-581.28166648,0.00011,2]
[333850932,1722558638367,-617.7597896,0.00011,2]
[333850933,1722558638382,-384.352,0.00011,2]
[333850934,1722558638393,-325.82,0.00011,2]
[333850935,1722558638404,-2510.72,0.00011,2]
[333850936,1722558638416,-34521.336,0.00011,2]
[333850937,1722558638428,-1692.27854966,0.00011,2]
[333850938,1722558638439,-3022.71915924,0.00011,2]
[333850939,1722558638451,-744.74833634,0.00011,2]
[333850940,1722558638463,-43272.09208816,0.00011,2]
[333850941,1722558638474,-2200.03350926,0.00011,2]
[333850942,1722558638485,-8400.0,0.00011,2]
[333850943,1722558638496,-457.8345374,0.00011,2]
[333850944,1722558638507,-1754.4226625,0.00011,2]
[333850945,1722558638518,-561.82928208,0.00011,2]
[333850948,1722558639559,-132104.62234513,0.00011,2]
[333850949,1722558639571,-548.94403522,0.00011,2]
[333850954,1722558640075,-865.43927189,0.00011,2]
[333850955,1722558640098,-533.1,0.00011,2]
[333850956,1722558640135,-2352.05509603,0.00011,2]
[333850957,1722558640250,-2775.94000765,0.00011,2]
[333850958,1722558640262,-4614.72514409,0.00011,2]
[333850959,1722558640274,-312.3160075,0.00011,2]
[333850960,1722558640286,-3200.6762738,0.00011,2]
[333850961,1722558640298,-91799.23822227,0.00011,2]
[333850962,1722558640309,-342.86858571,0.00011,2]
[333850963,1722558640320,-819.68910007,0.00011,2]
[333850964,1722558640332,-9920.5,0.00011,2]
[333850965,1722558640344,-256.89893274,0.00011,2]
[333850966,1722558640357,-63502.53377146,0.00011,2]
[333850967,1722558640382,-347.80531619,0.00011,2]
[333850968,1722558640394,-1677.4,0.00011,2]
[333850969,1722558640406,-3755.125,0.00011,2]
[333850970,1722558640418,-670.7,0.00011,2]
[333850971,1722558640430,-271.26559914,0.00011,2]
[333850972,1722558640441,-583.5699975,0.00011,2]
[333850973,1722558640459,-3812.46253125,0.00011,2]
[333850974,1722558640470,-2116.81533427,0.00011,2]
[333850975,1722558640482,-3048.32772882,0.00011,2]
[333850976,1722558640493,-2050883.20317621,0.00011,2]
[333850979,1722558642540,-655.22,0.00011,2]
[333850980,1722558642553,-301.88553806,0.00011,2]
[333850981,1722558642673,-330.63570906,0.00011,2]
[333850982,1722558642685,-49269.39928526,0.00011,2]
[333850983,1722558642742,-4334.4188288,0.00011,2]
[333850984,1722558642754,-17366.92009422,0.00011,2]
[333850985,1722558642802,-326.69,0.00011,2]
[333850986,1722558642813,-5557.37127244,0.00011,2]
[333850992,1722558645749,-769.62,0.00010959,2]
[333850993,1722558645759,-2240.25408757,0.00011,2]
[333850994,1722558645836,-517178.85231259,0.00011,2]
[333850995,1722558645845,-187.07182013,0.00011344,2]
[333850996,1722558645855,-5257.73359338,0.00011444,2]
[333850997,1722558645863,-1261.16791161,0.00011444,2]
[333850999,1722558645873,-250.0,0.00011781,2]
[333851000,1722558645882,-215.12,0.00011797,5]
[333851001,1722558645891,-216.19,0.00011812,2]
[333851002,1722558645902,-420.0,0.00011956,2]
[333851003,1722558645913,-420.0,0.00011967,2]
[333851004,1722558645924,-192.51,0.00012108,2]
[333851006,1722558645934,-3248.85559706,0.00012204,2]
[333851008,1722558645944,-188.73,0.00012998,2]
[333851009,1722558645954,-190.0,0.0001314,2]
[333851010,1722558645964,-587.0,0.00013164,2]
[333851011,1722558645975,-216.19,0.00013288,2]
[333851012,1722558645986,-3248.85559706,0.00013509,2]
[333851013,1722558645996,-1390.82835558,0.000136,2]
[333851014,1722558646006,-2751.0,0.00013699,2]
[333851015,1722558646016,-612531.247018,0.000138,2]
[333851016,1722558646025,-194096.81511591,0.000139,2]
[333851017,1722558646965,-5930.5049,0.000139,2]
[333851018,1722558646976,-7235.94988159,0.000139,2]
[333851019,1722558646987,-3278.829,0.000139,2]
[333851023,1722559555405,410.589987,0.00027,120]
[333851024,1722559633600,155.0,0.00027,120]
[333851039,1722559831707,-191.97,9.816e-05,2]
[333851040,1722559831716,-500.45243522,0.0001065,2]
[333851041,1722559831732,-1154.11005519,0.0001065,2]
[333851042,1722559831742,-343.0,0.00010699,2]
[333851043,1722559831753,-1654.56249041,0.000107,2]
[333851044,1722559831763,-1312.9997428,0.000108,2]
[333851045,1722559831775,-653.64769992,0.000108,2]
[333851046,1722559831809,-696.6011755,0.000108,2]
[333851047,1722559831823,-2475.41657037,0.000108,2]
[333851048,1722559831836,-9855.06791141,0.000108,2]
[333851049,1722559831846,-1000.0,0.000108,2]
[333851050,1722559831857,-61273.61141716,0.0001088,2]
[333851051,1722559831867,-150.0,0.00010889,2]
[333851052,1722559831876,-135801.5087,0.000109,2]
[333851053,1722559831886,-5000.0,0.00011205,2]
[333851054,1722559831896,-5818.21,0.00011205,2]
[333851055,1722559831906,-2335.26035505,0.00011224,2]
[333851056,1722559831916,-3975.93139247,0.00011321,2]
[333851059,1722559831927,-23900.0,0.00011675,2]
[333851060,1722559832050,-558.14,0.00011684,2]
[333851061,1722559832063,-183.81,0.00011696,2]
[333851062,1722559832072,-513.63352307,0.0001175,2]
[333851063,1722559832082,-500.0,0.00011767,2]
[333851064,1722559832092,-250.0,0.00011775,2]
[333851065,1722559832101,-255.0,0.00011934,2]
[333851066,1722559832111,-200.0,0.00011973,2]
[333851067,1722559832120,-550.0,0.00012,2]
[333851068,1722559832130,-336.42,0.00012052,2]
[333851069,1722559832140,-191.97,0.00012079,2]
[333851070,1722559832149,-1616.77,0.00012124,2]
[333851071,1722559832160,-900.96,0.00012166,2]
[333851072,1722559832170,-1406.83,0.00012169,2]